bitfinex/quotes_BTCUSD_20240810
["timestamp","ask_amount","ask_price","bid_price","bid_amount"]
[1723283873649,1.24129043,61073.0,61072.0,0.0019152]
[1723283873869,1.24829043,61073.0,61072.0,0.0029152]
[1723283874426,1.29721259,61073.0,61072.0,0.0029152]
[1723283874649,1.24829043,61073.0,61072.0,0.0029152]
[1723283875032,1.30721259,61073.0,61072.0,0.0029152]
[1723283875231,1.29721259,61073.0,61072.0,0.0029152]
[1723283875432,1.24829043,61073.0,61072.0,0.0029152]
[1723283875635,1.29721259,61073.0,61072.0,0.0029152]
[1723283876791,1.24829043,61073.0,61072.0,0.0029152]
[1723283876945,1.32167367,61073.0,61072.0,0.0029152]
[1723283877126,1.37570924,61073.0,61072.0,0.0029152]
[1723283877335,1.4415765,61073.0,61072.0,0.0029152]
[1723283877532,1.51962064,61073.0,61072.0,0.0029152]
[1723283877780,1.44198175,61073.0,61072.0,0.0029152]
[1723283877958,1.60613145,61073.0,61072.0,0.0029152]
[1723283879002,1.75293756,61073.0,61072.0,0.0029152]
[1723283879744,1.43498175,61073.0,61072.0,0.0019152]
[1723283879977,1.44198175,61073.0,61072.0,0.0029152]
[1723283880196,1.42798175,61073.0,61072.0,0.0019152]
[1723283880623,1.44198175,61073.0,61072.0,0.0029152]
[1723283881291,1.58889945,61073.0,61072.0,0.0029152]
[1723283881494,1.44198175,61073.0,61072.0,0.0029152]
[1723283881693,1.58889607,61073.0,61072.0,0.0029152]
[1723283882279,1.44198175,61073.0,61072.0,0.0029152]
[1723283882484,1.58889768,61073.0,61072.0,0.0029152]
[1723283883098,2.27889768,61073.0,61072.0,0.0029152]
[1723283883297,2.27916557,61073.0,61072.0,0.0029152]
[1723283883617,2.26916557,61073.0,61072.0,0.0029152]
[1723283883813,2.27916557,61073.0,61072.0,0.0029152]
[1723283884018,2.44331527,61073.0,61072.0,0.0029152]
[1723283884360,1.155719,61069.0,61068.0,0.0009141]
[1723283884562,1.48750135,61069.0,61068.0,0.0009141]
[1723283885060,1.63441368,61069.0,61068.0,0.0009141]
[1723283885305,1.48750135,61069.0,61068.0,0.0009141]
[1723283885454,0.930663,61066.0,61053.0,0.009152]
[1723283885664,1.48754535,61066.0,61053.0,0.009152]
[1723283886416,1.54209116,61066.0,61053.0,0.009152]
[1723283886568,1.55609116,61066.0,61053.0,0.009152]
[1723283886936,2.36584816,61066.0,61053.0,0.009152]
[1723283887139,2.49903043,61066.0,61053.0,0.009152]
[1723283887384,2.53002318,61066.0,61053.0,0.009152]
[1723283887585,2.53002303,61066.0,61053.0,0.009152]
[1723283888107,2.54402303,61066.0,61053.0,0.009152]
[1723283888304,0.74705,61054.0,61053.0,0.009152]
[1723283888451,1.25896492,61054.0,61053.0,0.009152]
[1723283890121,1.16826492,61054.0,61053.0,0.009152]
[1723283890286,1.11436492,61054.0,61053.0,0.009152]
[1723283890608,1.13236492,61054.0,61053.0,0.009152]
[1723283890858,1.14236492,61054.0,61053.0,0.009152]
[1723283891047,1.13236492,61054.0,61053.0,0.009152]
[1723283892759,1.15802837,61054.0,61053.0,0.009152]
[1723283892939,1.16776737,61054.0,61053.0,0.009152]
[1723283894324,1.15376737,61054.0,61053.0,0.009152]
[1723283894688,1.13976737,61054.0,61053.0,0.009152]
[1723283895169,1.15376737,61054.0,61053.0,0.009152]
[1723283895878,1.16776737,61054.0,61053.0,0.009152]
[1723283897066,1.33236737,61054.0,61053.0,0.009152]
[1723283897269,1.32236737,61054.0,61053.0,0.009152]
[1723283897853,1.29436737,61054.0,61053.0,0.009152]
[1723283898075,1.30436737,61054.0,61053.0,0.009152]
[1723283898281,1.30836737,61054.0,61053.0,0.009152]
[1723283898488,1.48838653,61054.0,61053.0,0.009152]
[1723283898664,1.60737121,61054.0,61053.0,0.009152]
[1723283898870,1.63137121,61054.0,61053.0,0.009152]
[1723283899350,1.69028375,61054.0,61053.0,0.009152]
[1723283899553,1.54106891,61054.0,61053.0,0.009152]
[1723283899749,1.52706891,61054.0,61053.0,0.009152]
[1723283899954,1.46036891,61054.0,61053.0,0.009152]
[1723283900205,1.40145637,61054.0,61053.0,0.009152]
[1723283900387,1.46037742,61054.0,61053.0,0.009152]
[1723283900791,1.50509399,61054.0,61053.0,0.009152]
[1723283901419,1.50509556,61054.0,61053.0,0.009152]
[1723283901627,1.46042504,61054.0,61053.0,0.009152]
[1723283902707,1.54109538,61054.0,61053.0,0.009152]
[1723283903292,1.55109538,61054.0,61053.0,0.009152]
[1723283903493,1.53709538,61054.0,61053.0,0.009152]
[1723283903695,1.70124508,61054.0,61053.0,0.009152]
[1723283903906,1.68124508,61054.0,61053.0,0.009152]
[1723283904106,1.69524508,61054.0,61053.0,0.009152]
[1723283904312,1.51709538,61054.0,61053.0,0.009152]
[1723283904511,1.53109538,61054.0,61053.0,0.009152]
[1723283904712,1.20610638,61054.0,61053.0,0.009152]
[1723283904932,1.28660638,61054.0,61053.0,0.009152]
[1723283905649,1.22270638,61054.0,61053.0,0.009152]
[1723283906398,1.19470638,61054.0,61053.0,0.009152]
[1723283906591,1.22270638,61054.0,61053.0,0.009152]
[1723283907114,1.19470638,61054.0,61053.0,0.009152]
[1723283907316,1.20870638,61054.0,61053.0,0.009152]
[1723283907513,1.22270638,61054.0,61053.0,0.009152]
[1723283907725,1.23248162,61054.0,61053.0,0.009152]
[1723283908953,1.21248162,61054.0,61053.0,0.009152]
[1723283909945,1.19848162,61054.0,61053.0,0.009152]
[1723283910205,1.23582338,61054.0,61053.0,0.009152]
[1723283910407,1.24982338,61054.0,61053.0,0.009152]
[1723283910614,1.19630819,61054.0,61053.0,0.009152]
[1723283910809,1.18230819,61054.0,61053.0,0.009152]
[1723283910999,1.21030819,61054.0,61053.0,0.009152]
[1723283911192,1.16559394,61054.0,61053.0,0.009152]
[1723283911399,1.21050217,61054.0,61053.0,0.009152]
[1723283911707,1.15159394,61054.0,61053.0,0.009152]
[1723283911927,1.19650216,61054.0,61053.0,0.009152]
[1723283912294,1.21050216,61054.0,61053.0,0.009152]
[1723283912692,1.19650216,61054.0,61053.0,0.009152]
[1723283913107,1.21066199,61054.0,61053.0,0.009152]
[1723283913307,1.25955704,61054.0,61053.0,0.009152]
[1723283913590,1.24555704,61054.0,61053.0,0.009152]
[1723283914090,1.25955704,61054.0,61053.0,0.009152]
[1723283914227,1.28726199,61054.0,61053.0,0.009152]
[1723283914421,1.45741169,61054.0,61053.0,0.009152]
[1723283914630,1.71620069,61054.0,61053.0,0.009152]
[1723283914849,1.69620069,61054.0,61053.0,0.009152]
[1723283915172,1.81843833,61054.0,61053.0,0.009152]
[1723283915310,1.69620069,61054.0,61053.0,0.009152]
[1723283916512,2.39620069,61054.0,61053.0,0.009152]
[1723283916899,2.47920254,61054.0,61053.0,0.009152]
[1723283918401,2.62647296,61054.0,61053.0,0.009152]
[1723283918766,1.94647296,61054.0,61053.0,0.009152]
[1723283918970,1.94684729,61054.0,61053.0,0.009152]
[1723283919990,1.86368998,61054.0,61053.0,0.009152]
[1723283920393,1.71663048,61054.0,61053.0,0.009152]
[1723283921726,1.79978768,61054.0,61053.0,0.009152]
[1723283922418,1.25888294,61054.0,61053.0,0.090852]
[1723283922628,1.52195278,61054.0,61053.0,0.090852]
[1723283922998,1.54195278,61054.0,61053.0,0.090852]
[1723283923392,1.53195278,61054.0,61053.0,0.090852]
[1723283923592,1.38473514,61054.0,61053.0,0.090852]
[1723283923993,1.37473514,61054.0,61053.0,0.090852]
[1723283924606,1.38473514,61054.0,61053.0,0.090852]
[1723283924787,1.37473514,61054.0,61053.0,0.090852]
[1723283924985,1.37556714,61054.0,61053.0,0.090852]
[1723283925192,1.52285594,61054.0,61053.0,0.090852]
[1723283925403,1.37506116,61054.0,61053.0,0.090852]
[1723283925821,1.21127216,61054.0,61053.0,0.090852]
[1723283926338,1.21130231,61054.0,61053.0,0.090852]
[1723283926895,1.35862244,61054.0,61053.0,0.090852]
[1723283927295,1.21130231,61054.0,61053.0,0.090852]
[1723283927714,1.35862244,61054.0,61053.0,0.090852]
[1723283928580,1.21130231,61054.0,61053.0,0.090852]
[1723283932479,1.2114222,61054.0,61053.0,0.090852]
[1723283933020,1.21142264,61054.0,61053.0,0.090852]
[1723283933535,1.19742264,61054.0,61053.0,0.090852]
[1723283934197,1.21142264,61054.0,61053.0,0.090852]
[1723283934544,1.19742264,61054.0,61053.0,0.090852]
[1723283935007,1.21142264,61054.0,61053.0,0.090852]
[1723283935187,1.21142264,61054.0,61053.0,0.009152]
[1723283935622,1.19742264,61054.0,61053.0,0.009152]
[1723283936022,1.22142264,61054.0,61053.0,0.009152]
[1723283936225,1.23142264,61054.0,61053.0,0.009152]
[1723283937912,1.22142264,61054.0,61053.0,0.009152]
[1723283938321,1.47171164,61054.0,61053.0,0.009152]
[1723283938498,2.2144956,61054.0,61053.0,0.009152]
[1723283939303,2.2004956,61054.0,61053.0,0.009152]
[1723283939510,2.20052961,61054.0,61053.0,0.009152]
[1723283939749,2.21452961,61054.0,61053.0,0.009152]
[1723283939929,2.37867931,61054.0,61053.0,0.009152]
[1723283940301,2.35067931,61054.0,61053.0,0.009152]
[1723283940487,2.37867931,61054.0,61053.0,0.009152]
[1723283941303,2.36467931,61054.0,61053.0,0.009152]
[1723283941614,2.37867931,61054.0,61053.0,0.009152]
[1723283942180,2.34467931,61054.0,61053.0,0.009152]
[1723283942368,2.26193028,61054.0,61053.0,0.009152]
[1723283942573,2.27593028,61054.0,61053.0,0.009152]
[1723283942825,2.28593028,61054.0,61053.0,0.009152]
[1723283943034,2.27193028,61054.0,61053.0,0.009152]
[1723283943735,2.29593028,61054.0,61053.0,0.009152]
[1723283943937,0.767073,61052.0,61051.0,0.0001]
[1723283944083,1.18220546,61052.0,61051.0,0.0001]
[1723283944292,1.77220546,61052.0,61051.0,0.0001]
[1723283944502,1.94599946,61052.0,61051.0,0.0001]
[1723283945107,1.78220546,61052.0,61051.0,0.0001]
[1723283945306,2.10125516,61052.0,61051.0,0.0001]
[1723283945703,2.2650425,61052.0,61051.0,0.0001]
[1723283946106,2.11482781,61052.0,61051.0,0.0001]
[1723283947096,0.910988,61044.0,61043.0,0.009415]
[1723283947398,2.2738434,61044.0,61043.0,0.009415]
[1723283948050,2.12798924,61044.0,61043.0,0.009415]
[1723283948253,2.12798924,61044.0,61031.0,0.009252]
[1723283948254,1.052064,61032.0,61031.0,0.009252]
[1723283948455,0.245836,61016.0,61015.0,0.0772]
[1723283948635,1.08182392,61016.0,61015.0,0.0772]
[1723283948836,1.15089631,61016.0,61015.0,0.0772]
[1723283949442,1.10482392,61016.0,61015.0,0.0772]
[1723283949673,1.1601161,61016.0,61015.0,0.0772]
[1723283949874,1.2889161,61016.0,61015.0,0.0772]
[1723283950193,0.737559,61012.0,61010.0,0.152052]
[1723283950410,1.12248936,61012.0,61010.0,0.086352]
[1723283950618,1.09790059,61012.0,61010.0,0.086352]
[1723283951677,0.67356992,61012.0,61011.0,0.143]
[1723283951832,0.509755,61012.0,61011.0,0.143]
[1723283952243,0.534755,61012.0,61011.0,0.143]
[1723283952443,0.698657,61012.0,61011.0,0.143]
[1723283952640,0.534755,61012.0,61011.0,0.143]
[1723283952978,0.698657,61012.0,61011.0,0.143]
[1723283954107,0.698657,61012.0,61011.0,0.15373438]
[1723283957387,1.04937392,61012.0,61011.0,0.15373438]
[1723283957746,1.04937392,61012.0,61011.0,0.143]
[1723283960902,1.04937392,61012.0,61011.0,0.1439152]
[1723283962182,1.04937392,61012.0,61011.0,0.0782152]
[1723283963553,1.04937392,61012.0,61011.0,0.0010152]
[1723283964705,1.17484131,61012.0,61011.0,0.0010152]
[1723283964909,1.05937392,61012.0,61011.0,0.0010152]
[1723283965327,1.11987392,61012.0,61011.0,0.0010152]
[1723283965852,1.10887392,61012.0,61011.0,0.0010152]
[1723283966049,1.09487392,61012.0,61011.0,0.0010152]
[1723283966351,1.10887392,61012.0,61011.0,0.0010152]
[1723283966563,1.01537392,61012.0,61011.0,0.1465152]
[1723283966763,1.02937392,61012.0,61011.0,0.1465152]
[1723283967379,0.865559,61012.0,61011.0,0.1465152]
[1723283967748,1.02937392,61012.0,61011.0,0.1465152]
[1723283968748,1.05237392,61012.0,61011.0,0.1465152]
[1723283969344,1.03837392,61012.0,61011.0,0.1465152]
[1723283970552,1.23224131,61012.0,61011.0,0.0010152]
[1723283970720,1.2774252,61012.0,61011.0,0.0010152]
[1723283970923,1.2874252,61012.0,61011.0,0.0010152]
[1723283971065,1.23224131,61012.0,61011.0,0.0010152]
[1723283971420,1.27742487,61012.0,61011.0,0.0010152]
[1723283971562,1.29142487,61012.0,61011.0,0.0010152]
[1723283971763,1.26342487,61012.0,61011.0,0.0010152]
[1723283972162,1.29142487,61012.0,61011.0,0.0010152]
[1723283973056,1.27742487,61012.0,61011.0,0.0010152]
[1723283974428,1.26342487,61012.0,61011.0,0.0010152]
[1723283974631,1.91342487,61012.0,61011.0,0.0010152]
[1723283974834,1.88092487,61012.0,61011.0,0.0010152]
[1723283975065,1.83574131,61012.0,61011.0,0.0010152]
[1723283975262,1.7335118,61012.0,61011.0,0.0010152]
[1723283975765,1.7475118,61012.0,61011.0,0.0010152]
[1723283976738,1.7375118,61012.0,61011.0,0.0010152]
[1723283978173,1.69237392,61012.0,61011.0,0.0010152]
[1723283978379,1.71982631,61012.0,61011.0,0.0010152]
[1723283978712,1.07482631,61012.0,61011.0,0.1465152]
[1723283978995,0.73310939,61012.0,61011.0,0.1465152]
[1723283979147,0.673657,61012.0,61011.0,0.1465152]
[1723283979349,0.687657,61012.0,61011.0,0.1465152]
[1723283980759,0.673657,61012.0,61011.0,0.1465152]
[1723283981045,0.683657,61012.0,61011.0,0.1465152]
[1723283981948,0.692657,61012.0,61011.0,0.1465152]
[1723283982390,0.692657,61012.0,61011.0,0.0010152]
[1723283982391,0.99676762,61012.0,61011.0,0.0010152]
[1723283982595,0.99676762,61012.0,61011.0,2e-07]
[1723283982596,1.30738957,61012.0,61011.0,2e-07]
[1723283982810,1.86901594,61012.0,61011.0,2e-07]
[1723283983010,1.87914818,61012.0,61011.0,2e-07]
[1723283983211,1.97195045,61012.0,61011.0,2e-07]
[1723283983401,1.91845045,61012.0,61011.0,2e-07]
[1723283983603,1.93271041,61012.0,61011.0,2e-07]
[1723283983758,1.94471041,61012.0,61011.0,2e-07]
[1723283984165,1.94271041,61012.0,61011.0,2e-07]
[1723283984365,2.13061241,61012.0,61011.0,2e-07]
[1723283984564,2.27476211,61012.0,61011.0,2e-07]
[1723283984780,2.27776211,61012.0,61011.0,2e-07]
[1723283984978,1.93971041,61012.0,61011.0,2e-07]
[1723283985182,1.95371041,61012.0,61011.0,2e-07]
[1723283985611,1.81764818,61012.0,61011.0,2e-07]
[1723283985815,1.98155018,61012.0,61011.0,2e-07]
[1723283986015,1.99533899,61012.0,61011.0,2e-07]
[1723283986217,2.15948869,61012.0,61011.0,2e-07]
[1723283987137,2.14548869,61012.0,61011.0,2e-07]
[1723283987322,2.15548869,61012.0,61011.0,2e-07]
[1723283987766,2.16948869,61012.0,61011.0,2e-07]
[1723283989393,2.16971853,61012.0,61011.0,2e-07]
[1723283989879,2.31619321,61012.0,61011.0,2e-07]
[1723283990429,2.15571853,61012.0,61011.0,2e-07]
[1723283991247,2.16971853,61012.0,61011.0,2e-07]
[1723283991889,2.15571853,61012.0,61011.0,2e-07]
[1723283992093,2.16971853,61012.0,61011.0,2e-07]
[1723283992297,1.99581653,61012.0,61011.0,2e-07]
[1723283992517,1.91233299,61012.0,61011.0,2e-07]
[1723283992963,2.07625123,61012.0,61011.0,2e-07]
[1723283993461,2.22343701,61012.0,61011.0,2e-07]
[1723283993617,2.07625123,61012.0,61011.0,2e-07]
[1723283993950,2.06225123,61012.0,61011.0,2e-07]
[1723283994178,2.07625123,61012.0,61011.0,2e-07]
[1723283994383,2.08625123,61012.0,61011.0,2e-07]
[1723283994501,2.06225123,61012.0,61011.0,2e-07]
[1723283994702,2.07225123,61012.0,61011.0,2e-07]
[1723283994899,2.08625123,61012.0,61011.0,2e-07]
[1723283995251,1.92210153,61012.0,61011.0,2e-07]
[1723283995455,1.89810153,61012.0,61011.0,2e-07]
[1723283995761,1.92210153,61012.0,61011.0,2e-07]
[1723283996461,1.87627592,61012.0,61011.0,2e-07]
[1723283996757,1.91210579,61012.0,61011.0,2e-07]
[1723283996914,1.74830769,61012.0,61011.0,2e-07]
[1723283997098,1.77245045,61012.0,61011.0,2e-07]
[1723283997301,1.74830769,61012.0,61011.0,2e-07]
[1723283997498,1.91220969,61012.0,61011.0,2e-07]
[1723283997760,1.74830769,61012.0,61011.0,2e-07]
[1723283997963,1.75913969,61012.0,61011.0,2e-07]
[1723283998186,1.74913969,61012.0,61011.0,2e-07]
[1723283998374,1.91304169,61012.0,61011.0,2e-07]
[1723283999453,1.74913969,61012.0,61011.0,2e-07]
[1723283999610,1.75913969,61012.0,61011.0,2e-07]
[1723283999814,1.74913969,61012.0,61011.0,2e-07]
[1723284000220,1.73913969,61012.0,61011.0,2e-07]
[1723284000420,1.07613969,61012.0,61011.0,0.0819002]
[1723284000800,1.22350942,61012.0,61011.0,0.1454002]
[1723284001003,1.07613969,61012.0,61011.0,0.1454002]
[1723284001351,0.85230392,61012.0,61011.0,0.1454002]
[1723284001553,0.86109995,61012.0,61011.0,0.1454002]
[1723284001752,0.85053725,61012.0,61011.0,0.1454002]
[1723284001913,0.86453725,61012.0,61011.0,0.1454002]
[1723284002112,0.67616386,61012.0,61011.0,0.1454002]
[1723284003132,0.34835986,61012.0,61011.0,0.1454002]
[1723284003328,0.274685,61012.0,61011.0,0.1454002]
[1723284003566,0.096783,61012.0,61011.0,0.1454002]
[1723284003740,0.260685,61012.0,61011.0,0.1454002]
[1723284004122,0.246685,61012.0,61011.0,0.1454002]
[1723284004361,0.086783,61012.0,61011.0,0.1454002]
[1723284004567,0.250685,61012.0,61011.0,0.1454002]
[1723284004771,0.014832,61012.0,61011.0,0.1454002]
[1723284004993,0.016832,61012.0,61011.0,0.64700666]
[1723284005221,0.04910958,61025.0,61014.0,0.173896]
[1723284005350,0.081939,61021.0,61019.0,0.0656]
[1723284005547,0.58931207,61029.0,61014.0,0.163894]
[1723284005548,0.163867,61025.0,61021.0,0.0656]
[1723284005758,0.245803,61024.0,61023.0,0.0656]
[1723284005951,0.409672,61024.0,61023.0,0.1486]
[1723284007382,0.420672,61024.0,61023.0,0.1486]
[1723284008123,0.420672,61024.0,61023.0,0.1496]
[1723284008124,0.426672,61024.0,61023.0,0.1496]
[1723284008538,0.262803,61024.0,61023.0,0.1496]
[1723284009533,0.426672,61024.0,61023.0,0.1496]
[1723284009866,0.262803,61024.0,61023.0,0.1496]
[1723284010321,0.426672,61024.0,61023.0,0.1496]
[1723284010482,0.427504,61024.0,61023.0,0.1496]
[1723284012538,0.263635,61024.0,61023.0,0.1496]
[1723284013859,0.257635,61024.0,61023.0,0.1486]
[1723284014265,0.246635,61024.0,61023.0,0.1486]
[1723284014492,0.247635,61024.0,61023.0,0.1496]
[1723284014679,0.246635,61024.0,61023.0,0.1496]
[1723284014888,0.246635,61024.0,61023.0,0.1486]
[1723284015088,0.247635,61024.0,61023.0,0.1486]
[1723284015315,0.411504,61024.0,61023.0,0.1506]
[1723284015630,0.575373,61024.0,61023.0,0.1506]
[1723284016061,0.73918792,61024.0,61023.0,0.085]
[1723284016464,1.00205692,61024.0,61023.0,0.002]
[1723284016666,1.02705692,61024.0,61023.0,0.002]
[1723284017102,0.081949,61013.0,61012.0,0.5511]
[1723284017301,0.57356192,61013.0,61012.0,0.5511]
[1723284017512,0.76046092,61013.0,61012.0,0.083]
[1723284017709,0.409755,61012.0,61011.0,2e-07]
[1723284017963,0.57356992,61012.0,61011.0,2e-07]
[1723284018273,0.73747192,61012.0,61011.0,2e-07]
[1723284018471,0.86047192,61012.0,61011.0,2e-07]
[1723284020463,0.86147192,61012.0,61011.0,2e-07]
[1723284021041,0.86647192,61012.0,61011.0,2e-07]
[1723284022459,0.86730392,61012.0,61011.0,2e-07]
[1723284025762,1.03120592,61012.0,61011.0,2e-07]
[1723284027534,1.03020592,61012.0,61011.0,2e-07]
[1723284027740,1.02520592,61012.0,61011.0,2e-07]
[1723284027963,1.02820592,61012.0,61011.0,2e-07]
[1723284028316,1.02520592,61012.0,61011.0,2e-07]
[1723284028521,1.04220592,61012.0,61011.0,2e-07]
[1723284028723,1.05520592,61012.0,61011.0,0.0010002]
[1723284029568,1.06520592,61012.0,61011.0,0.0010002]
[1723284029794,1.04820592,61012.0,61011.0,0.0010002]
[1723284029995,1.04820592,61012.0,61011.0,2e-07]
[1723284029996,1.04520592,61012.0,61011.0,2e-07]
[1723284030202,1.0589611,61012.0,61011.0,2e-07]
[1723284030366,1.0589611,61012.0,61011.0,0.0010002]
[1723284030784,1.0729611,61012.0,61011.0,0.0010002]
[1723284031186,1.1218906,61012.0,61011.0,0.0010002]
[1723284031350,1.1392906,61012.0,61011.0,0.0010002]
[1723284031545,1.9534403,61012.0,61011.0,0.0010002]
[1723284031747,1.9534403,61012.0,61011.0,2e-07]
[1723284031748,2.25557365,61012.0,61011.0,2e-07]
[1723284031958,2.25557365,61012.0,60993.0,0.0831]
[1723284031959,0.01,61000.0,60975.0,0.6549252]
[1723284032153,0.01,61000.0,60973.0,0.164105]
[1723284032154,0.08184646,60979.0,60973.0,0.0001]
[1723284032367,0.769314,60974.0,60973.0,0.0001]
[1723284032580,0.869314,60974.0,60973.0,0.0001]
[1723284032810,0.83782892,60974.0,60973.0,0.0001]
[1723284033263,0.83782892,60974.0,60973.0,0.0011]
[1723284033513,0.34581692,60974.0,60973.0,0.0011]
[1723284033749,1.64400561,60974.0,60973.0,0.0001]
[1723284033979,1.13962892,60974.0,60973.0,0.0001]
[1723284034223,1.14962892,60974.0,60973.0,0.0001]
[1723284034428,1.13962892,60974.0,60973.0,0.0001]
[1723284034625,0.90412492,60974.0,60973.0,0.0001]
[1723284034868,0.90812492,60974.0,60973.0,0.0001]
[1723284035144,0.89812492,60974.0,60973.0,0.0001]
[1723284035949,0.67982492,60974.0,60973.0,0.0010163]
[1723284036186,0.68582492,60974.0,60973.0,0.0010163]
[1723284036395,0.68582492,60974.0,60973.0,0.0841163]
[1723284036607,0.68782492,60974.0,60973.0,0.0010163]
[1723284036734,0.70182492,60974.0,60973.0,0.0010163]
[1723284036935,0.68782492,60974.0,60973.0,0.0010163]
[1723284037175,0.67382492,60974.0,60973.0,0.0010163]
[1723284037386,0.70082492,60974.0,60973.0,0.0010163]
[1723284037641,0.72382492,60974.0,60973.0,0.0010163]
[1723284037812,0.55982092,60974.0,60973.0,0.0010163]
[1723284038051,0.55982092,60974.0,60973.0,0.0841163]
[1723284038258,0.72382492,60974.0,60973.0,0.0010163]
[1723284040950,0.39581692,60974.0,60973.0,0.0010163]
[1723284041158,0.39581692,60974.0,60973.0,0.1470163]
[1723284041159,0.027,60974.0,60973.0,0.1470163]
[1723284041599,0.027,60974.0,60973.0,0.2390193]
[1723284041804,0.027,60974.0,60973.0,0.5570333]
[1723284041975,0.027,60974.0,60973.0,0.7310403]
[1723284042186,0.027,60974.0,60973.0,0.7330403]
[1723284042384,0.49107874,60995.0,60985.0,0.0831]
[1723284042592,0.081977,60993.0,60985.0,0.0831]
[1723284042789,0.24579292,60992.0,60985.0,0.0831]
[1723284043754,0.081979,60991.0,60985.0,0.0831]
[1723284043999,0.24579392,60991.0,60985.0,0.0831]
[1723284044367,0.16381492,60991.0,60985.0,0.0831]
[1723284044754,0.1,60990.0,60985.0,0.0831]
[1723284045836,0.081983,60988.0,60985.0,0.0831]
[1723284046082,0.181981,60990.0,60985.0,0.0841]
[1723284046467,0.181981,60990.0,60985.0,0.0831]
[1723284046666,0.107,60990.0,60985.0,0.0841]
[1723284047066,0.107,60990.0,60986.0,0.081985]
[1723284047270,0.107,60990.0,60985.0,0.166086]
[1723284047714,0.107,60990.0,60986.0,0.081984]
[1723284047923,0.009,60990.0,60989.0,0.560407]
[1723284048122,0.009,60990.0,60989.0,0.550407]
[1723284048292,0.009,60990.0,60989.0,0.72437]
[1723284048876,0.002,60990.0,60989.0,0.72437]
[1723284049475,0.08196,61005.0,61001.0,0.1405]
[1723284049797,0.16381492,61004.0,61001.0,0.222465]
[1723284049960,0.16381492,61004.0,61002.0,0.081963]
[1723284050162,0.16381492,61004.0,61001.0,0.1405]
[1723284050362,0.377435,61012.0,61002.0,0.081964]
[1723284050564,0.081958,61007.0,61002.0,0.081964]
[1723284050765,0.16381492,61006.0,61002.0,0.081964]
[1723284050987,0.1,61005.0,61001.0,0.1405]
[1723284051194,0.377435,61012.0,61006.0,0.163917]
[1723284051195,0.018232,61012.0,61006.0,0.163917]
[1723284051462,0.018232,61012.0,61006.0,0.0785]
[1723284051654,0.018232,61012.0,61011.0,0.160452]
[1723284051856,0.018232,61012.0,61011.0,0.386356]
[1723284052098,0.018232,61012.0,61011.0,0.73407492]
[1723284052300,0.018232,61012.0,61011.0,0.74407492]
[1723284052507,0.018232,61012.0,61011.0,0.90797892]
[1723284053186,0.018232,61012.0,61011.0,0.90897892]
[1723284053187,0.043232,61012.0,61011.0,0.90897892]
[1723284053990,0.031232,61012.0,61011.0,0.90897892]
[1723284054169,0.031232,61012.0,61011.0,0.87897892]
[1723284054372,0.031232,61012.0,61011.0,0.55226]
[1723284054373,0.043232,61012.0,61011.0,0.55226]
[1723284057754,0.043232,61012.0,61011.0,0.55126]
[1723284057929,0.031232,61012.0,61011.0,0.55126]
[1723284058263,0.041232,61012.0,61011.0,0.55226]
[1723284058425,0.023832,61012.0,61011.0,0.55226]
[1723284058626,0.010832,61012.0,61011.0,0.55126]
[1723284058849,0.022832,61012.0,61011.0,0.55226]
[1723284059384,0.010832,61012.0,61011.0,0.55026]
[1723284059687,0.012832,61012.0,61011.0,0.55126]
[1723284059847,0.019832,61012.0,61011.0,0.55226]
[1723284062189,0.019832,61012.0,61011.0,0.88997892]
[1723284062870,0.012832,61012.0,61011.0,0.88897892]
[1723284063389,0.000832,61012.0,61011.0,0.57114708]
[1723284063735,0.007832,61012.0,61011.0,0.55226]
[1723284064139,0.000832,61012.0,61011.0,0.55126]
[1723284064515,0.000832,61012.0,61011.0,0.55626]
[1723284065036,0.000832,61012.0,61011.0,0.55526]
[1723284065432,0.000832,61012.0,61011.0,0.391356]
[1723284065709,0.000832,61012.0,61011.0,0.165452]
[1723284066059,0.000832,61012.0,61011.0,0.324356]
[1723284066258,0.000832,61012.0,61011.0,0.328356]
[1723284066844,0.000832,61012.0,61011.0,0.324356]
[1723284067224,0.000832,61012.0,61011.0,0.328356]
[1723284067654,0.000832,61012.0,61011.0,0.324356]
[1723284068295,0.000832,61012.0,61011.0,0.328356]
[1723284068724,0.000832,61012.0,61011.0,0.004]
[1723284068725,0.142883,61012.0,61011.0,0.004]
[1723284068912,0.306785,61012.0,61011.0,0.004]
[1723284069142,0.47059992,61012.0,61011.0,0.004]
[1723284069304,0.63450192,61012.0,61011.0,0.004]
[1723284069508,0.63450192,61012.0,61002.0,0.0785]
[1723284069509,0.38864892,61012.0,61002.0,0.0785]
[1723284069710,0.38864892,61012.0,61000.0,0.081967]
[1723284069934,0.63450192,61012.0,61011.0,0.004]
[1723284070307,0.38864892,61012.0,61000.0,0.081967]
[1723284070524,0.08196,61006.0,61000.0,0.081967]
[1723284070704,0.163914,61008.0,61002.0,0.001]
[1723284070908,0.22474692,61012.0,61002.0,0.001]
[1723284071110,0.081959,61006.0,61001.0,0.081965]
[1723284071950,0.081961,61004.0,61002.0,0.001]
[1723284072350,0.081961,61004.0,61000.0,0.001]
[1723284072699,0.081961,61004.0,61001.0,0.001]
[1723284072899,0.081961,61004.0,60999.0,0.081968]
[1723284073149,0.081961,61004.0,61001.0,0.001]
[1723284073456,0.081963,61003.0,61002.0,0.001]
[1723284073774,0.011,61004.0,61003.0,0.385289]
[1723284073966,0.016,61004.0,61003.0,0.549215]
[1723284074196,0.016,61004.0,61003.0,0.385289]
[1723284074582,0.081952,61011.0,61003.0,0.385289]
[1723284074583,0.081952,61011.0,61005.0,0.081959]
[1723284074938,0.000832,61012.0,61008.0,0.081955]
[1723284075152,0.000832,61012.0,61004.0,0.163923]
[1723284075153,0.082783,61012.0,61004.0,0.163923]
[1723284075549,0.000832,61012.0,61003.0,0.1394]
[1723284075758,0.000832,61012.0,61011.0,0.385256]
[1723284076518,0.000832,61012.0,61011.0,0.0769]
[1723284076719,0.000832,61012.0,61008.0,0.081956]
[1723284076925,0.000832,61012.0,61010.0,0.081953]
[1723284077303,0.007832,61012.0,61011.0,0.082952]
[1723284077501,0.018832,61012.0,61011.0,0.082952]
[1723284077701,0.018832,61012.0,61011.0,0.081952]